Cogmind - Beta 10.2 @@@ ROGUE MODE // 2021.02.02 @ 11:34:57 Player: Gadabout Result: Destroyed by S-27 Virus with Autogun Performance ------------- Evolutions (3) 1500 Regions Visited (5) 1000 Robots Destroyed (27) 135 Value Destroyed (824) 824 Prototype IDs (0) 0 Alien Tech Used (0) 0 Bonus (0) 0 TOTAL SCORE: 3459 Bonus ------- None Cogmind --------- Core Integrity 0/700 Matter 290/300 Energy 99/100 System Corruption 0% Temperature Cool (0) Movement Core (50) Location -7/Lower Caves Parts ------- > --- POWER (1) -------- (None) > --- PROPULSION (4) --- Armored Huge Wheel > --- UTILITY (5) ------ Advanced Signal Interpreter > --- WEAPON (3) ------- (None) > --- INVENTORY (4) ---- Advanced Sensor Array Target Analyzer Actuator Array Improved Medium Laser Peak State ------------ > --- POWER ------------ Angular Momentum Engine > --- PROPULSION ------- Armored Huge Wheel Armored Huge Wheel > --- UTILITY ---------- Large Storage Unit Large Storage Unit Target Analyzer Actuator Array Layered Medium Armor Plating > --- WEAPON ----------- Great Maul Great Maul Great Maul > --- INVENTORY -------- Angular Momentum Engine Advanced Treads Advanced Treads Armored Huge Wheel Advanced Sensor Array Advanced Signal Interpreter Target Analyzer Actuator Array Actuator Array Hardened Medium Armor Plating Improved Medium Laser Improved Medium Laser [Rating: 47] Favorites ----------- Power Light Nuclear Core Engine Ion Engine Power Core Light Nuclear Core Propulsion Advanced Treads Treads Advanced Treads Leg Carbon-fiber Leg Wheel Armored Huge Wheel Utility Large Storage Unit Device Actuator Array Storage Large Storage Unit Processor Target Analyzer Protection Hardened Medium Armor Plating Weapon Great Maul Ballistic Gun Light Assault Rifle Impact Weapon Great Maul Build | -11 -10 -9 -8 -7 -7 ------- Run | Scr Mat Mat Mat Fac Low Slots Evolved 6 | . . 2 2 2 . Power . | . . . . . . Propulsion 2 | . . . . 2 . Utility 3 | . . 1 2 . . Weapon 1 | . . 1 . . . Parts Attached 42 | 6 2 10 11 6 7 Power 7 | 1 . 2 2 1 1 Engine 4 | 1 . 1 . 1 1 Core 3 | . . 1 2 . . Reactor . | . . . . . . Propulsion 13 | 2 . 2 4 1 4 Treads 7 | 2 . 2 1 . 2 Leg 2 | . . . 2 . . Wheel 4 | . . . 1 1 2 Hover . | . . . . . . Flight . | . . . . . . Utility 15 | 1 2 2 5 3 2 Device 5 | . . 1 3 1 . Storage 4 | 1 2 1 . . . Processor 2 | . . . 1 . 1 Hackware . | . . . . . . Protection 4 | . . . 1 2 1 Artifact . | . . . . . . Weapon 7 | 2 . 4 . 1 . Energy Gun . | . . . . . . Energy Cannon . | . . . . . . Ballistic Gun 3 | 2 . 1 . . . Ballistic Cannon . | . . . . . . Launcher . | . . . . . . Special Weapon . | . . . . . . Impact Weapon 4 | . . 3 . 1 . Slashing Weapon . | . . . . . . Piercing Weapon . | . . . . . . Special Melee Weapon . | . . . . . . Unidentified Prototypes . | . . . . . . Parts Lost 22 | . . 1 4 6 11 Power 5 | . . 1 1 1 2 Propulsion 7 | . . . 2 . 5 Utility 6 | . . . 1 2 3 Weapon 4 | . . . . 3 1 Highest Loss Streak 11 | . . 1 1 6 11 Average Slot Usage (%) 89 | . 98 97 92 82 33 Engine 4 | . 14 7 . . 2 Core 4 | . . 2 8 6 . Treads 14 | . 28 22 10 . 2 Leg 2 | . . . 6 . . Wheel 3 | . . . . 15 5 Device 9 | . . 10 18 7 1 Storage 19 | . 27 22 18 15 10 Processor 1 | . . . . 7 3 Protection 2 | . . . 3 6 1 Ballistic Gun 5 | . 28 1 . . . Impact Weapon 20 | . . 29 27 22 4 Naked Turns 1 | . . . . . 1 Heaviest Build 62 | 12 27 54 62 58 62 Greatest Support 56 | 40 40 44 44 56 56 Greatest Overweight (x) 18 | . . 1 18 1 10 Average Overweight (x) . | . . . 1 . . Largest Inventory Capacity 16 | 6 10 16 16 16 16 Average Capacity 13 | 5 7 14 16 16 12 Most Carried 16 | 6 6 16 16 16 12 Average Carried 12 | 3 6 14 14 15 7 Final Capacity 16 | 6 10 16 16 16 4 Final Carried 15 | 6 6 15 15 13 4 Class Distribution -------------------- 98% | Mutant Dominant Class ---------------- Mutant | -10/Materials Mutant | -9/Materials Mutant | -8/Materials Mutant | -7/Factory Mutant | -7/Lower Caves Resources | -11 -10 -9 -8 -7 -7 ----------- Run | Scr Mat Mat Mat Fac Low Matter Collected 760 | 256 89 154 182 64 15 Remotely . | . . . . . . Salvage Created 993 | . 225 202 502 64 . Parts 35 | . 11 12 12 . . Haulers Intercepted . | . . . . . . Recyclers Shooed 1 | . . 1 . . . Parts Field Recycled . | . . . . . . Retrieved Matter . | . . . . . . Parts Self-Destructed 6 | . . . . . 6 Prevented . | . . . . . . Kills | -11 -10 -9 -8 -7 -7 ------- Run | Scr Mat Mat Mat Fac Low Combat Hostiles Destroyed 25 | . 7 7 10 1 . Melee 12 | . . 5 7 . . Guns 7 | . 7 . . . . Classes Destroyed 6 | . 3 1 2 . . Recycler 1 | . . . 1 . . Watcher 1 | . 1 . . . . Swarmer 10 | . 3 4 3 . . Grunt 10 | . 4 2 4 . . Sentry 4 | . . 1 2 1 . Hunter 1 | . . . 1 . . Best Kill Streak 4 | . 3 4 3 1 . Combat Bots Only 4 | . 3 4 3 1 . Max Kills in Single Turn 1 | . 1 1 1 1 . Gunslinging . | . . . . . . Exploded . | . . . . . . Melee 1 | . . 1 1 . . Uniques/NPCs Destroyed . | . . . . . . Combat | -11 -10 -9 -8 -7 -7 -------- Run | Scr Mat Mat Mat Fac Low Damage Taken 4714 | . 253 320 924 1441 1776 Core 978 | . 35 68 170 251 454 Absorbed by Shields . | . . . . . . Core Remaining (%) 84 | 100 86 83 69 . . Volleys Fired 19 | . 19 . . . . Largest 2 | . 2 . . . . Hottest 40 | . 40 . . . . Shots Fired 38 | . 38 . . . . Gun 38 | . 38 . . . . Cannon . | . . . . . . Launcher . | . . . . . . Special . | . . . . . . Kinetic 38 | . 38 . . . . Thermal . | . . . . . . Explosive . | . . . . . . Electromagnetic . | . . . . . . Robot Hit Streak 8 | . 8 . . . . Robot Miss Streak 1 | . 1 . . . . Penetration Max . | . . . . . . Secondary Targets 1 | . 1 . . . . Max Gunslinging Chain 1 | . 1 . . . . Shots Hit Robots 123 | . 27 17 58 20 1 Core Hits 33 | . 16 4 10 3 . Critical Hits . | . . . . . . Critical Kills . | . . . . . . Critical Parts Destroyed . | . . . . . . Melee Attacks 143 | . . 33 82 24 4 Impact 143 | . . 33 82 24 4 Slashing . | . . . . . . Piercing . | . . . . . . Sneak Attacks 3 | . . 1 2 . . Combat Hostiles . | . . . . . . Follow-up Attacks 36 | . . 7 23 6 . Damage Inflicted 2921 | . 411 566 1523 385 36 Guns 268 | . 268 . . . . Cannons . | . . . . . . Explosions 143 | . 143 . . . . Melee 2510 | . . 566 1523 385 36 Ramming . | . . . . . . Kinetic 268 | . 268 . . . . Thermal . | . . . . . . Explosive 143 | . 143 . . . . Electromagnetic . | . . . . . . Impact 2510 | . . 566 1523 385 36 Slashing . | . . . . . . Piercing . | . . . . . . Highest Corruption . | . . . . . . Average Corruption . | . . . . . . Corruption Purged . | . . . . . . Overload Shots . | . . . . . . Overflow Damage 307 | . 15 87 181 24 . Projectiles . | . . . . . . Explosions 15 | . 15 . . . . Melee 292 | . . 87 181 24 . Knockbacks 6 | . . 3 2 . 1 Impact 6 | . . 3 2 . 1 Kinetic . | . . . . . . Secondary . | . . . . . . Self-Inflicted Damage . | . . . . . . Shots . | . . . . . . Rammed . | . . . . . . Targets Rammed . | . . . . . . Kicked . | . . . . . . Crushed . | . . . . . . Highest Temperature 9 | . 9 . . 9 . Average Temperature 8 | . 8 . . 6 . Received Heat Transfer 1074 | . 66 69 351 462 126 Siege Activations . | . . . . . . Robots Corrupted . | . . . . . . Combat Hostiles . | . . . . . . Parts Fried 8 | . . 2 6 . . Impact Corruptions 19 | . . 6 11 2 . Robots Melted . | . . . . . . Combat Hostiles . | . . . . . . Parts Melted . | . . . . . . Heat Transferred . | . . . . . . Parts Sabotaged . | . . . . . . Parts Stolen . | . . . . . . Parts Stripped . | . . . . . . Power Chain Reactions . | . . . . . . Missiles Intercepted . | . . . . . . Alert | -11 -10 -9 -8 -7 -7 ------- Run | Scr Mat Mat Mat Fac Low Peak Influence 398 | . 205 218 398 206 . Initial 165 | . . 21 7 165 . Average 139 | . 86 79 218 164 . Maximum Alert Level 1 | . 1 1 1 1 . Low Security (%) 74 | 100 90 95 36 95 . Level 1 25 | . 9 4 63 4 . Level 2 . | . . . . . . Level 3 . | . . . . . . Level 4 . | . . . . . . Level 5 . | . . . . . . High Security . | . . . . . . Max Security . | . . . . . . Squads Dispatched 4 | . 1 1 1 1 . Investigation 1 | . . 1 . . . Extermination . | . . . . . . Reinforcement 2 | . 1 . 1 . . Assault . | . . . . . . Garrison 1 | . . . . 1 . Intercept . | . . . . . . Construction Impeded . | . . . . . . Haulers Reinforced . | . . . . . . Stealth | -11 -10 -9 -8 -7 -7 --------- Run | Scr Mat Mat Mat Fac Low Distress Signals 4 | . 1 . 3 . . Communications Jammed . | . . . . . . Distress Signals . | . . . . . . Times Spotted 64 | . 10 8 27 3 16 Peak Tracking Total 8 | . 4 4 6 2 8 Tactical Retreats 16 | . . . 13 . 3 Traps | -11 -10 -9 -8 -7 -7 ------- Run | Scr Mat Mat Mat Fac Low Traps Triggered . | . . . . . . Indirectly . | . . . . . . Trap Hack Attempts . | . . . . . . Triggered . | . . . . . . Disarmed . | . . . . . . Reprogrammed . | . . . . . . Reused . | . . . . . . Traps Extracted . | . . . . . . Installed . | . . . . . . Triggered 1 | . . . 1 . . Machines | -11 -10 -9 -8 -7 -7 ---------- Run | Scr Mat Mat Mat Fac Low Machines Disabled 4 | . 3 1 . . . Max in Single Turn 2 | . 2 1 . . . Machines Sabotaged . | . . . . . . Garrisons Compromised . | . . . . . . Overloaded Fab Kills . | . . . . . . Fab Network Shutdowns . | . . . . . . Hacking | -11 -10 -9 -8 -7 -7 --------- Run | Scr Mat Mat Mat Fac Low Machines Accessed 10 | . 2 4 1 3 . Terminals 6 | . 2 3 1 . . Fabricators 2 | . . . . 2 . Repair Stations 1 | . . 1 . . . Recycling Units . | . . . . . . Scanalyzers . | . . . . . . Garrison Access 1 | . . . . 1 . Total Hacks 26 | . 10 8 2 6 . Successful 12 | . 5 3 2 2 . Failed 14 | . 5 5 . 4 . Catastrophic 3 | . . 3 . . . Database Lockouts . | . . . . . . Manual 6 | . 4 2 . . . Terminals 18 | . 10 6 2 . . Fabricators 4 | . . . . 4 . Repair Stations 2 | . . 2 . . . Recycling Units . | . . . . . . Scanalyzers . | . . . . . . Garrison Access 2 | . . . . 2 . Terminal Hacks 7 | . 4 1 2 . . Unreport Threat 1 | . 1 . . . . Locate Traps 1 | . . . 1 . . Dispatch Records 1 | . . . 1 . . Maintenance Status 1 | . 1 . . . . Investigation Status 1 | . 1 . . . . Hauler Manifests 1 | . 1 . . . . Registered Components 1 | . . 1 . . . Fabricator Hacks 2 | . . . . 2 . Build 2 | . . . . 2 . Repair Station Hacks 2 | . . 2 . . . Scan Component 1 | . . 1 . . . Repair 1 | . . 1 . . . Recycling Unit Hacks . | . . . . . . Scanalyzer . | . . . . . . Garrison Access Hacks . | . . . . . . Unauthorized Hacks 1 | . 1 . . . . Terminals 1 | . 1 . . . . Detonate 1 | . 1 . . . . Fabricators . | . . . . . . Repair Stations . | . . . . . . Recycling Units . | . . . . . . Scanalyzers . | . . . . . . Garrison Access . | . . . . . . Data Cores Recovered . | . . . . . . Used . | . . . . . . Hacking Detections 8 | . 2 3 1 2 . Full Trace Events 1 | . . 1 . . . Feedback Events . | . . . . . . Feedback Blocked . | . . . . . . Robot Schematics Acquired . | . . . . . . Robots Built . | . . . . . . Matter . | . . . . . . Time . | . . . . . . Total Robot Build Rating . | . . . . . . Part Schematics Acquired . | . . . . . . Parts Built 3 | . . . . 3 . Matter 380 | . . . . 380 . Time 126 | . . . . 126 . Total Part Build Rating 15 | . . . . 15 . Parts Repaired 1 | . . 1 . . . Time 26 | . . 26 . . . Parts Recycled . | . . . . . . Recycled Matter . | . . . . . . Retrieved Matter . | . . . . . . Retrieved Components . | . . . . . . Parts Scanalyzed . | . . . . . . Part Schematics Acquired . | . . . . . . Parts Damaged . | . . . . . . Bothacking | -11 -10 -9 -8 -7 -7 ------------ Run | Scr Mat Mat Mat Fac Low Used RIF Installer . | . . . . . . Robots Hacked . | . . . . . . Non-combat . | . . . . . . Combat . | . . . . . . Robot Hacks Applied . | . . . . . . Relay Couplers Released . | . . . . . . Robots Rewired . | . . . . . . Allies Hacked . | . . . . . . Hacks Repelled . | . . . . . . Allies | -11 -10 -9 -8 -7 -7 -------- Run | Scr Mat Mat Mat Fac Low Total Allies . | . . . . . . Largest Group . | . . . . . . Highest-Rated Group . | . . . . . . Highest-Rated Ally . | . . . . . . Total Orders . | . . . . . . Ally Attacks . | . . . . . . Total Damage . | . . . . . . Kills . | . . . . . . Allies Corrupted . | . . . . . . Allies Melted . | . . . . . . Intel | -11 -10 -9 -8 -7 -7 ------- Run | Scr Mat Mat Mat Fac Low Robot Analysis Total . | . . . . . . Derelict Logs Recovered . | . . . . . . Drone Launches . | . . . . . . Drone Recoveries . | . . . . . . Exploration | -11 -10 -9 -8 -7 -7 ------------- Run | Scr Mat Mat Mat Fac Low Turns Passed 2416 | 109 426 542 763 423 153 Spaces Moved 1226 | 57 229 239 288 263 150 Core 67 | 2 . . 1 . 64 Treads 708 | 55 229 239 185 . . Legs 95 | . . . 95 . . Wheels 356 | . . . 7 263 86 Hover . | . . . . . . Flight . | . . . . . . Fastest Speed 50 | 50 160 145 110 100 50 Average Speed 140 | 156 160 161 163 108 87 Slowest Speed 950 | 160 160 165 950 110 550 Overloaded Moves . | . . . . . . Propulsion Burnouts . | . . . . . . Robots Hopped . | . . . . . . Cave-ins Triggered . | . . . . . . Exploration Rate (%) 22 | 5 42 26 26 5 30 Regions Visited 5 Branch Regions 1 Pre-discovered Areas . | . . . . . . Known Exits Taken . | . . . . . . Unknown Exits Taken 5 | 1 1 1 1 1 . Scrap Searched 1 | . . . . . 1 Spaces Dug 13 | . . 2 9 2 . Terrain Destroyed 43 | . 30 2 9 2 . Melee 13 | . . 2 9 2 . Projectile . | . . . . . . AOE 30 | . 30 . . . . Terrain Rammed . | . . . . . . Walls Destroyed . | . . . . . . Machines Disabled . | . . . . . . Actions | -11 -10 -9 -8 -7 -7 --------- Run | Scr Mat Mat Mat Fac Low Total 1667 | 74 255 347 463 365 163 Wait 218 | 6 5 43 92 70 2 Move 1221 | 56 228 238 287 262 150 Hop . | . . . . . . Pick Up 38 | 6 . 17 10 5 . Fast Attach 19 | 6 1 7 2 1 2 Attach 16 | . . 1 6 4 5 Detach 5 | . . 3 1 1 . Swap 7 | . 1 2 3 1 . Drop 27 | . 1 13 9 4 . Fire 19 | . 19 . . . . Melee 97 | . . 23 53 17 4 Ram . | . . . . . . Kick . | . . . . . . Crush . | . . . . . . Escape Stasis . | . . . . . . Rewire . | . . . . . . Trap . | . . . . . . Miscellaneous . | . . . . . . Route ------- -11/Scrapyard -10/Materials (discovered 2 exits: *Mat x2) -9/Materials -8/Materials -7/Factory -7/Lower Caves History --------- Turn | Location | Event 7 | -11/Scrapyard | Discovered new exit (range 16) 110 | -11/Scrapyard | Entered Materials 301 | -10/Materials | Build established: Mutant 319 | -10/Materials | Discovered new exit (range 10) 509 | -10/Materials | Discovered new exit (range 16) 536 | -10/Materials | Entered another Materials area 536 | -9/Materials | Evolved 2 slots: Utility x1, Weapon x1 1019 | -9/Materials | Repaired Lgt. Armor Plating 1035 | -9/Materials | Discovered new exit (range 11) 1078 | -9/Materials | Entered another Materials area 1078 | -8/Materials | Evolved 2 slots: Utility x2 1800 | -8/Materials | Discovered new exit (range 10) 1841 | -8/Materials | Entered Factory 1841 | -7/Factory | Evolved 2 slots: Propulsion x2 2009 | -7/Factory | Fabricated Angular Momentum Engine (x2) 2141 | -7/Factory | Fabricated Lyr. Medium Armor Plating (x1) 2185 | -7/Factory | Discovered new exit (range 13) 2250 | -7/Factory | Garrison activated, responded to threat 2264 | -7/Factory | Entered Lower Caves 2264 | -7/Lower Caves | Spotted B-75 Beast 2282 | -7/Lower Caves | Lost 6 parts (1p2u3w) 2321 | -7/Lower Caves | Core integrity fell below 50% 2331 | -7/Lower Caves | Encountered a Warlord checkpoint 2369 | -7/Lower Caves | Released all parts (2) 2391 | -7/Lower Caves | Core integrity fell below 20% 2394 | -7/Lower Caves | Lost 11 parts (2p5n3u1w) 2417 | -7/Lower Caves | Destroyed by S-27 Virus with Autogun Last Messages --------------- 02325_ Angular Momentum Engine destroyed. 02325_ Adv. Treads destroyed. 02331_ 5O-IZR(M): "Estimated chance of a MAIN.C patrol making it through here: 0%. Unless they've got a Behemoth in tow, in which case it's probably closer to 100%." 02333_ S-27 Virus destroyed. 02339_ Adv. Treads destroyed. 02340_ S-27 Virus knocked back. 02355_ Great Maul destroyed. 02363_ Arm. Huge Wheel destroyed. 02369_ Released Lrg. Storage Unit. 02370_ Acquired Adv. Signal Interpreter. 02399_ Searching scrap... 02399_ Found Imp. Trap Extractor. 02399_ Found Particle Charger. 02399_ Found Arm. Huge Wheel. 02399_ Found Maneuvering Thrusters. 02399_ Found 14 Matter. 02400_ Acquired 10 matter. 02400_ Acquired Arm. Huge Wheel. Map ----- +----------------------------------------------------+ | ?????????????????????????????????????????????????? | | ?????????????????????????????????????????????????? | | ?????????????????????????????????????????????????? | | ?????????????????????????????????????????????????? | | ?????????????????????????????????????????????????? | | ?????????????????????????????????????????????????? | | ?????????????????????????????????????????????????? | | ?????????????????????????????????????????????????? | | ?????????????????????????????????????????????????? | | ?????????????????????????????????????????????????? | | ?????????????????????????? ??????????????????????? | | ????????????????????????? ??????????????????????? | | ???????????????????????? ??????????????????????? | | ??????????????????????? ??????????##??????????? | | ???????????????????????? ????????## #??????????? | | ????????????????????????? ####????# #??????????? | | ????????????????????????? ??#### #??????????# | | ?????????????????????????? ?## #?????????## | | ???????????????# ?????????# #?# ###???????# | | ???????????????# ???###?## #?# ? ##??????# | | ???????????????# ### ## #?# #??# ##??????# | | ???????????????# ### ##?# ##??#### | | ???????????????# ### ##?# | | ????????????????# s #?# | | ????????????????# # ##?# ## | | ???????????????????# @ ### #?????? | | ???????????????????# ##?#! #### #? | | ???????????????# #??#%! #? | | ???????????????# ## #?##!######? | | ???????????????## ## #### #??# #?????? | | ????????????????## ??## #??#### #??# ######? | | ?????????????????# ????# #?????## ##### ## ## | | ????????????????# ?????# ??????# #### # | | ????????????????#??????# ??????# #?# | | ???????????????????????####??????# #?# | | ?????????????????????????????????# #?#### | | ?????????????????????????????????# #????#### | | ????????????????????????????????? #??????## | | ?????????????????????????????????# ?????## | | ?????????????????????????????????? # ?????# | | ??????????????????????????????????#???????## | | ???????????????????????????????????????????# | | ???????????????????????????????????????????# | | ??????????????????????????????????????????## | | ??????????????????????????????????????????# | | ?????????????????????????????????????????# | | ?????????????????????????????????????????## | | ??????????????????????????????????????????# ### | | ??????????????????????????????????????????## ##?? | | ???????????????????????????????????????????####??? | +----------------------------------------------------+ Best States ------------- Heat Dissipation 34 Energy Generation 18 Energy Capacity 300 Matter Stores 300 Matter Capacity 450 Sight Range 16 Robot Scan Range 16 Terrain Scan Density 10 Armor Coverage 225 Evasion (%) 50 Target Analysis 5 Recoil Reduction 2 Item Schematics ----------------- None Robot Schematics ------------------ None Fabricated ------------ Angular Momentum Engine | x2 | -7/Factory | Preloaded Lyr. Medium Armor Plating | x1 | -7/Factory | Preloaded Alien Tech Used ----------------- None Achievements -------------- None Challenges ------------ None Game ------ Seed ChainGuidanceSystem Manual? 0 Play Time 00:25:39 Cumulative 11.6 hours Start 2021.02.02 @ 10:57:43 End 2021.02.02 @ 11:34:57 Sessions 1 Manual Loads 0 Difficulty Rogue Special Mode None Game No. 19 Rogue 19 Adventurer 0 Explorer 0 Win Type - Total 0 Types 0/0/0/0/0/0/0/0/0 Lore% 31 Gallery% 34 Achievement% 28 Wizard Run 0 Options --------- ASCII 0 Keyboard 0 Movement Numpad Keybinds 0 Fullscreen 0 Font 20/Terminus Map View 76x50 Tactical HUD 1 Map Filters NONE Filters NONE Steam 1 RUN: bc968893-2ab7-468d-8c2f-0bd82ee3e2dd